[Event "WWRR Elo 2018"]
[Site "Wachtebeke"]
[Date "2018.02.12"]
[Round "4"]
[White "Van Malder, Dries"]
[Black "Van Houtte, Randy"]
[Result "1-0"]
[ECO "D35"]
[WhiteElo "2032"]
[BlackElo "2067"]
[Annotator "NA RC"]
[PlyCount "73"]
[EventDate "2018.??.??"]
[EventCountry "BEL"]
[SourceTitle "playchess.com"]
[Source "ChessBase"]
[SourceQuality "1"]
[TimeControl "40/5400+30:900+30"]

{[%evp 8,73,2,16,18,16,19,23,22,8,33,33,47,37,85,62,32767,63,72,0,107,75,75,93,152,149,142,131,107,108,183,168,189,170,178,165,202,217,173,213,247,235,231,155,162,168,210,182,252,202,436,526,597,287,539,249,400,476,950,1272,2529,29980,29980,29985,29996,29997,29997,29998]} 1. d4 {[%emt 0:00:00]} d5 {[%emt 0:06:36]} 2. c4 {[%emt 0:00:00]} e6 {[%emt 0:00:05]} 3. Nc3 {[%emt 0:00:00]} Nf6 {[%emt 0:00:05]} 4. cxd5 {[%emt 0:00:18]} exd5 {[%emt 0:00:21]} 5. Bg5 {[%emt 0:00:09]} Be7 {[%emt 0:00:11]} 6. e3 {[%emt 0:00:05]} c6 {[%emt 0:00:20]} 7. Bd3 {[%emt 0:00:07]} h6 {[%emt 0:01:39]} 8. Bh4 {[%emt 0:00:06]} Be6 {[%emt 0:02:19]} 9. Nge2 {[%emt 0:00:09] D35: Queen's Gambit Declined: Exchange Variation} Qd7 {[%emt 0:01:12]} (9... O-O 10. O-O Re8 11. Qc2 Nbd7 12. a3 Nh5 13. Bxe7 Qxe7 14. b4 Nb6 15. Na4 Nxa4 16. Qxa4 a6 17. Qc2 g6 18. Rfc1 Ng7 19. Rab1 Bf5 {½-½ (56) Bjuhr,A (2498)-Rozenberg,D (2434) ICCF email 2011}) 10. O-O $146 {[%emt 0:01:00]} ({Predecessor:} 10. Qc2 b5 11. Nf4 Bg4 12. Bxf6 Bxf6 13. Nfxd5 Bd8 14. Nf4 Na6 15. a3 Nc7 16. Ne4 {1-0 (43) Prieto Velasco,R (1762)-Hogerhorst,T (1957) Goch 2011}) 10... Bf5 {[%emt 0:01:07]} 11. f3 {[%emt 0:01:49]} Bxd3 {[%emt 0:02:03]} 12. Qxd3 {[%emt 0:00:09]} Na6 {[%emt 0:02:18]} 13. e4 {[%emt 1:32:38]} (13. Rae1 $14) 13... Nb4 {[%emt 0:26:22]} (13... Nxe4 $11 {keeps the balance.} 14. fxe4 Bxh4) 14. Qb1 {[%emt 0:00:00]} dxe4 {[%emt 0:12:04]} 15. fxe4 {[%emt 0:00:00]} Ng4 {[%emt 0:00:44]} 16. Bxe7 {[%emt 0:00:00]} Qxe7 {[%emt 0:00:14]} 17. Qc1 {[%emt 0:00:00]} Qg5 {[%emt 0:07:30]} 18. Nf4 {[%emt 0:00:00]} O-O {[%emt 0:04:12]} (18... O-O-O $16) 19. a3 {[%emt 0:00:00]} Na6 {[%emt 0:00:47]} 20. h3 {[%emt 0:00:00]} Nf6 {[%emt 0:02:29] [#]} 21. e5 $1 {[%emt 0:00:00]} Nh7 {[%emt 0:06:23]} 22. Ne4 {[%emt 0:00:00]} Qd8 {[%emt 0:00:23]} 23. Nd6 {[%emt 0:00:00]} Nc7 {[%emt 0:03:04]} 24. Qc4 {[%emt 0:00:00]} Nb5 {[%emt 0:03:37]} 25. Nxb5 {[%emt 0:00:00]} cxb5 {[%emt 0:00:14] [#]} 26. Qd3 $1 {[%emt 0:00:00]} ({Don't play} 26. Qxb5 $6 Qxd4+ 27. Kh1 Rae8 $11) 26... Qb6 {[%emt 0:01:30]} (26... Re8 $16 27. Rae1 Rc8) 27. Nd5 {[%emt 0:00:00]} Qa5 {[%emt 0:04:28]} 28. b4 {[%emt 0:00:00]} Qa4 $2 {[%emt 0:01:02] [#]} (28... Qd8 {was necessary.}) 29. e6 $1 {[%emt 0:00:00]} fxe6 {[%emt 0:07:02]} 30. Ne7+ {[%emt 0:00:00]} Kh8 {[%emt 0:00:05]} 31. Ng6+ {[%emt 0:00:00]} Kg8 {[%emt 0:00:06]} 32. Nxf8 {[%emt 0:00:00]} Nxf8 {[%emt 0:00:10]} 33. Rac1 {[%emt 0:00:00]} Qa6 {[%emt 0:01:12]} 34. Rc7 {[%emt 0:00:00]} e5 {[%emt 0:00:22]} 35. Rff7 {[%emt 0:00:00]} Ne6 {[%emt 0:01:00] [#]} 36. Qg6 $1 {[%emt 0:00:00]} Kh8 {[%emt 0:00:39] [#]} 37. Rxg7 {[%emt 0:00:00]} 1-0

[Event "WWRR Elo 2018"]
[Site "Wachtebeke"]
[Date "2018.02.12"]
[Round "4"]
[White "Van De Wynkele, Eric"]
[Black "Verheyen, Olivier"]
[Result "1-0"]
[ECO "C54"]
[WhiteElo "2016"]
[BlackElo "2001"]
[Annotator "NA RC"]
[PlyCount "94"]
[EventDate "2018.??.??"]
[EventCountry "BEL"]
[SourceTitle "playchess.com"]
[Source "ChessBase"]
[SourceQuality "1"]
[TimeControl "40/5400+30:900+30"]

{[%evp 8,94,19,16,22,15,19,24,14,-18,0,0,0,-32,-27,-58,-37,-62,-33,-35,-33,-39,11,-51,-30,-50,-35,-110,-116,-122,-112,-135,-141,-98,0,-22,-13,-23,-8,-37,162,78,95,87,254,189,193,82,89,32,228,108,107,0,0,0,0,0,0,0,0,0,0,0,0,0,0,0,0,0,19,29,33,0,0,0,70,77,149,32767,155,154,166,125,318,58,51,56,6079]} 1. e4 {[%emt 0:05:41]} e5 {[%emt 0:00:08]} 2. Nf3 {[%emt 0:00:04]} Nc6 {[%emt 0:00:13]} 3. Bc4 {[%emt 0:00:06]} Bc5 {[%emt 0:00:07]} 4. c3 {[%emt 0:01:05]} Nf6 {[%emt 0:00:22]} 5. d3 {[%emt 0:00:12]} a6 {[%emt 0:00:26]} 6. h3 {[%emt 0:01:47] C54: Giuoco Piano: 4 c3 Nf6, main lines with 5 d4 and 5 d3} (6. a4 d6 7. O-O h6 8. Re1 O-O 9. h3 Re8 10. b4 Ba7 11. Nbd2 Qe7 12. Nf1 Be6 13. Be3 Bxc4 14. dxc4 Qe6 15. Bxa7 Nxa7 {1-0 (47) Karjakin,S (2760)-Mamedyarov,S (2799) Riadh 2017}) 6... Ba7 {[%emt 0:00:33]} 7. Bb3 {[%emt 0:00:50]} d5 {[%emt 0:01:48] LiveBook: 12 Games} 8. Qe2 {[%emt 0:06:00]} dxe4 {[%emt 0:01:07]} 9. dxe4 {[%emt 0:00:03]} O-O {[%emt 0:01:39]} 10. g4 $146 {[%emt 0:02:31]} ({Predecessor:} 10. Nbd2 Re8 11. Nf1 Be6 12. Bc2 b5 13. Ne3 Nd7 14. O-O Bxe3 15. Qxe3 {1-0 (39) Uuriintuya,U (2255)-Mungunzul,B (1739) Uliastai 2016}) 10... Qe7 {[%emt 0:06:26]} 11. Nbd2 {[%emt 0:00:29]} Be6 {[%emt 0:02:34]} 12. Bc2 {[%emt 0:00:01]} Rfd8 {[%emt 0:04:25]} 13. Nf1 {[%emt 0:02:32]} b5 {[%emt 0:01:32]} 14. Ne3 {[%emt 0:05:18]} Nd7 {[%emt 0:19:33]} 15. b3 {[%emt 0:13:19]} b4 {[%emt 0:10:44]} 16. Nd5 {[%emt 0:05:12]} Qd6 {[%emt 0:02:28]} 17. Be3 {[%emt 0:23:49]} (17. Nxb4 $15 Nxb4 18. cxb4) 17... bxc3 {[%emt 0:04:32]} 18. Rd1 {[%emt 0:01:38]} Bxd5 {[%emt 0:00:44]} 19. Bxa7 {[%emt 0:03:40]} Nxa7 {[%emt 0:06:01]} 20. Rxd5 {[%emt 0:05:29]} Qc6 {[%emt 0:05:01]} (20... Qf6 $17 21. O-O c6) 21. Qd3 {[%emt 0:03:29]} f6 {[%emt 0:00:52]} 22. O-O {[%emt 0:00:34]} Nb5 {[%emt 0:05:24]} 23. b4 {[%emt 0:01:15]} Kf8 $2 {[%emt 0:03:31]} (23... Nd6 $11 {and Black has nothing to worry.}) 24. Ba4 {[%emt 0:01:44]} Ke7 {[%emt 0:01:58]} 25. Rd1 {[%emt 0:00:24]} Qe6 $2 {[%emt 0:07:09]} (25... Ke8 $16 {was worth a try.}) 26. Nh4 {[%emt 0:08:58]} ({Weaker is} 26. Bxb5 axb5 27. Qxc3 c6 $14) 26... g6 {[%emt 0:00:32] [#]} 27. Bxb5 {[%emt 0:01:24]} (27. Bb3 $142 $1) 27... axb5 $11 {[%emt 0:14:11]} 28. Qxc3 {[%emt 0:00:23]} Ra6 $2 {[%emt 0:00:00]} (28... c6 $14 29. R5d3 Rxa2) 29. Rxb5 {[%emt 0:01:40]} (29. Qxc7 $18 Qc6 30. Qxc6 Rxc6 31. g5 (31. Rxb5 Ra8 $16)) 29... Rc6 {[%emt 0:00:00]} 30. Qd2 {[%emt 0:00:25]} (30. Qe3 $16) 30... Rd6 {[%emt 0:00:00]} 31. Rd5 {[%emt 0:01:01]} Nb6 $1 {[%emt 0:00:00]} 32. Rxd6 {[%emt 0:01:13]} Rxd6 {[%emt 0:00:00]} 33. Qc2 {[%emt 0:00:18]} Rxd1+ {[%emt 0:00:00]} 34. Qxd1 {[%emt 0:00:01]} Qxa2 {[%emt 0:00:00]} 35. Qc1 {[%emt 0:01:03]} Qc4 {[%emt 0:00:00]} 36. Qh6 {[%emt 0:00:19]} Qf7 {[%emt 0:00:00]} 37. Qe3 {[%emt 0:01:29]} Qc4 {[%emt 0:00:00]} 38. Qh6 {[%emt 0:00:49]} Qg8 {[%emt 0:00:01]} 39. g5 $1 {[%emt 0:01:36]} Nd7 {[%emt 0:00:30]} 40. gxf6+ {[%emt 0:02:09]} Nxf6 {[%emt 0:15:21]} 41. Qg5 {[%emt 0:00:30]} Qc4 {[%emt 0:00:00]} (41... Qe6 $11) 42. Qxe5+ {[%emt 0:00:39]} Qe6 {[%emt 0:00:00]} (42... Kf7 $142) 43. Qxc7+ {[%emt 0:01:10]} Nd7 {[%emt 0:00:00]} 44. Qf4 {[%emt 0:03:43]} Qxh3 {[%emt 0:00:00]} 45. Nf3 {[%emt 0:00:16]} Nf6 $2 {[%emt 0:00:00]} (45... Qe6 $16 46. Kg2 h5) 46. Qe5+ $2 {[%emt 0:02:44]} (46. Ng5 $18 Qg4+ 47. Qxg4 Nxg4 48. Nxh7) 46... Qe6 {[%emt 0:00:00]} 47. Qc5+ {[%emt 0:01:33]} Qd6 $18 {[%emt 0:00:00]} (47... Ke8 $14 48. Qc3 h5) 1-0

[Event "WWRR Elo 2018"]
[Site "Wachtebeke"]
[Date "2018.02.12"]
[Round "4"]
[White "Sinke, Wim"]
[Black "Roels, Frederik"]
[Result "1-0"]
[ECO "A30"]
[WhiteElo "1887"]
[BlackElo "1914"]
[Annotator "NA RC"]
[PlyCount "71"]
[EventDate "2018.??.??"]
[EventCountry "BEL"]
[SourceTitle "playchess.com"]
[Source "ChessBase"]
[SourceQuality "1"]
[TimeControl "40/5400+30:900+30"]

{[%evp 8,70,41,22,43,13,14,-4,48,16,25,18,52,42,65,43,68,40,120,130,117,97,142,91,100,36,89,78,95,88,120,80,97,70,75,48,85,88,102,77,81,70,84,68,79,106,126,76,55,74,69,27,827,38,117,99,1411,1944,1404,1675,1913,5675,29984,2251,29999]} 1. d4 {[%emt 0:00:00]} Nf6 {[%emt 0:02:43]} 2. Nf3 {[%emt 0:00:00]} g6 {[%emt 0:00:25]} 3. g3 {[%emt 0:00:22]} b6 {[%emt 0:00:06]} 4. c4 {[%emt 0:00:29]} Bb7 {[%emt 0:00:15]} 5. Nc3 {[%emt 0:01:01]} Bg7 {[%emt 0:00:10]} 6. Bg2 {[%emt 0:00:48] LiveBook: 52 Games} O-O {[%emt 0:00:22]} 7. O-O {[%emt 0:00:09]} d6 {[%emt 0:00:14]} 8. b3 {[%emt 0:05:57]} c5 {[%emt 0:02:44]} 9. Bb2 {[%emt 0:04:00]} Nbd7 {[%emt 0:03:53] A30: Symmetrical English: Double Fianchetto and Hedgehog} (9... cxd4 10. Qxd4 Nbd7 11. Qd2 Rc8 12. Rac1 a6 13. Rfd1 Rc7 14. Nd4 Bxg2 15. Kxg2 Qa8+ 16. f3 Rd8 17. e4 e6 18. Nc2 Ne8 19. Ne3 h5 {1-0 (43) Karjakin,S (2785)-Salem,A (2656) Doha 2016}) 10. d5 {[%emt 0:02:34]} a6 {[%emt 0:00:43]} 11. a4 {[%emt 0:00:50]} Qc7 {[%emt 0:03:57]} 12. Qc2 {[%emt 0:10:59]} Ne5 $146 {[%emt 0:02:01]} ({Better is} 12... e6 $14) ({Predecessor:} 12... Rfe8 13. Rad1 Rad8 14. e3 e6 15. dxe6 fxe6 16. Rd2 {½-½ (70) Dogdu,M (2043)-Inan,C (1845) Manavgat 2016}) 13. Nxe5 {[%emt 0:02:46]} dxe5 {[%emt 0:00:06]} 14. e4 {[%emt 0:00:46]} Rad8 {[%emt 0:01:30]} 15. Rad1 {[%emt 0:02:38]} Bc8 {[%emt 0:00:54]} 16. h3 {[%emt 0:04:29]} Nh5 {[%emt 0:00:19]} 17. Kh2 {[%emt 0:05:47]} Bh6 {[%emt 0:07:09]} 18. Ne2 {[%emt 0:03:26]} f5 {[%emt 0:01:08]} 19. exf5 {[%emt 0:06:29]} gxf5 {[%emt 0:00:40]} 20. Bf3 {[%emt 0:02:33]} Nf6 {[%emt 0:00:35]} 21. Qc3 {[%emt 0:02:39]} e4 {[%emt 0:03:35]} 22. Bg2 {[%emt 0:01:22]} Bg7 {[%emt 0:06:53]} 23. Qc1 {[%emt 0:02:42]} e6 {[%emt 0:02:53]} 24. dxe6 {[%emt 0:01:51]} Bxe6 {[%emt 0:00:36]} 25. f3 {[%emt 0:09:06]} exf3 {[%emt 0:03:28]} 26. Bxf3 {[%emt 0:00:30]} Ne4 {[%emt 0:04:06]} 27. Bxg7 {[%emt 0:05:00]} Qxg7 {[%emt 0:00:21]} 28. Bxe4 {[%emt 0:00:39]} fxe4 {[%emt 0:00:05]} 29. Qe3 {[%emt 0:00:50]} (29. Rxd8 $16 Rxd8 30. Nc3) 29... Bf5 $2 {[%emt 0:01:48]} (29... Qe5 $14) 30. Nf4 $2 {[%emt 0:00:56]} ({Only move:} 30. Rxd8 $18 Rxd8 31. Rxf5) 30... Qh6 {[%emt 0:07:19]} ({Better is} 30... Rd4 $14) 31. h4 {[%emt 0:02:33]} Qc6 $2 {[%emt 0:06:04]} (31... a5 $16) 32. Rxd8 {[%emt 0:01:04]} Rxd8 {[%emt 0:00:05]} 33. Nd5 {[%emt 0:00:09]} Rxd5 {[%emt 0:01:01]} 34. cxd5 {[%emt 0:00:26]} Qxd5 {[%emt 0:00:41]} 35. Qf4 {[%emt 0:01:09]} (35. Qg5+ $142 Kf7 36. Rxf5+ Qxf5 37. Qxf5+ Kg7 38. Qxe4) 35... Bg6 {[%emt 0:01:52]} 36. Qf8# {[%emt 0:21:01]} 1-0

[Event "WWRR Elo 2018"]
[Site "Wachtebeke"]
[Date "2018.02.12"]
[Round "4"]
[White "Moens, Patrick"]
[Black "Dauw, Sterre"]
[Result "0-1"]
[ECO "A01"]
[WhiteElo "1870"]
[BlackElo "1942"]
[Annotator "NA RC"]
[PlyCount "74"]
[EventDate "2018.??.??"]
[EventCountry "BEL"]
[SourceTitle "playchess.com"]
[Source "ChessBase"]
[SourceQuality "1"]
[TimeControl "40/5400+30:900+30"]

{[%evp 8,74,-7,-8,12,1,22,26,21,16,18,6,22,0,13,-23,-34,-54,-48,-103,-60,-92,-69,-71,-45,-64,-43,-87,-88,-89,-104,-93,-91,-191,-264,-237,-169,-187,0,-217,0,-137,-131,-272,-276,-255,-278,-329,-344,-364,-363,-479,-491,-447,-352,-921,-489,-515,-526,-496,-451,-368,-477,-525,-550,-1786,-2137,-1916,-5804]} 1. b3 {[%emt 0:00:00]} e5 {[%emt 0:00:05]} 2. Bb2 {[%emt 0:00:00]} Nc6 {[%emt 0:00:05]} 3. e3 {[%emt 0:00:03]} Nf6 {[%emt 0:00:06]} 4. Bb5 {[%emt 0:00:34]} Bd6 {[%emt 0:00:05]} 5. Na3 {[%emt 0:00:07]} Na5 {[%emt 0:00:05] A01: Nimzowitsch-Larsen Opening} (5... e4 6. Nc4 Be7 7. Bxc6 dxc6 8. Ne2 O-O 9. O-O c5 10. Ng3 Re8 11. f3 exf3 12. Qxf3 Rf8 13. e4 {1-0 (31) Karjakin,S (2760)-Esipenko,A (2564) Riadh 2017}) 6. Be2 {[%emt 0:00:06]} c6 {[%emt 0:00:50]} 7. c4 {[%emt 0:00:09]} O-O {[%emt 0:08:31]} 8. Nc2 {[%emt 0:00:17]} b6 {[%emt 0:03:22]} 9. Nf3 {[%emt 0:02:54]} Re8 $146 {[%emt 0:06:04]} ({Predecessor:} 9... e4 10. Nfd4 Re8 11. f4 c5 12. Nf5 Bf8 13. g4 {0-1 (40) Grabuzova,T (2348)-Karjakin,S (2566) playchess.com INT 2004}) 10. d4 {[%emt 0:03:06]} e4 {[%emt 0:05:45]} 11. Nd2 {[%emt 0:03:55]} Bc7 {[%emt 0:01:30]} 12. Nf1 {[%emt 0:09:47]} d5 {[%emt 0:00:13]} 13. cxd5 {[%emt 0:00:21]} cxd5 {[%emt 0:00:19]} 14. Ng3 {[%emt 0:03:26]} Nc6 {[%emt 0:09:45]} 15. O-O {[%emt 0:01:20]} Ne7 {[%emt 0:07:49]} 16. Rc1 {[%emt 0:04:31]} g6 {[%emt 0:06:52]} 17. f4 {[%emt 0:04:02]} exf3 {[%emt 0:05:57]} 18. Rxf3 {[%emt 0:02:02]} Nf5 {[%emt 0:08:25]} 19. Nxf5 {[%emt 0:05:29]} Bxf5 {[%emt 0:00:23]} 20. h3 {[%emt 0:06:38]} (20. Rxf5 $17 gxf5 21. Qf1) 20... Qd6 {[%emt 0:06:57]} 21. Rf4 $1 {[%emt 0:24:43] [#]} Qe6 $2 {[%emt 0:05:33]} ({Black should play} 21... Rxe3 $1 $19 {[%mdl 512]} 22. Nxe3 Qxf4) 22. Rf3 $1 {[%emt 0:01:27]} Qd6 {[%emt 0:04:44]} 23. Rf4 {[%emt 0:03:56]} Qe6 {[%emt 0:04:25]} 24. Rf3 {[%emt 0:00:07]} Be4 {[%emt 0:00:05]} 25. Bb5 {[%emt 0:03:36]} (25. Rf1 $142) 25... Bxf3 {[%emt 0:06:56]} 26. Qxf3 {[%emt 0:00:18]} Re7 {[%emt 0:01:29]} 27. Rf1 {[%emt 0:01:30]} Ne4 {[%emt 0:01:09]} 28. Ba3 {[%emt 0:05:58]} Bd6 {[%emt 0:00:13]} 29. Bc1 {[%emt 0:02:22]} Rc8 {[%emt 0:00:17]} 30. Bd3 {[%emt 0:00:42]} Rc3 {[%emt 0:00:53]} 31. Bxe4 $2 {[%emt 0:02:25]} (31. Qd1) 31... Qxe4 {[%emt 0:00:54]} 32. Qxe4 {[%emt 0:01:30]} Rxe4 {[%emt 0:00:07]} 33. Na1 {[%emt 0:00:52]} Rc8 {[%emt 0:01:20]} 34. Bd2 {[%emt 0:00:43]} f5 {[%emt 0:00:18]} 35. Kf2 {[%emt 0:01:29]} f4 {[%emt 0:00:26]} 36. Rc1 {[%emt 0:01:11]} fxe3+ {[%emt 0:00:19]} 37. Bxe3 {[%emt 0:00:21] [#]} Bg3+ $19 {[%emt 0:00:27]} 0-1

[Event "WWRR Elo 2018"]
[Site "Wachtebeke"]
[Date "2018.02.12"]
[Round "5"]
[White "Wiley, Tom"]
[Black "Vuelban, Virgilio"]
[Result "1/2-1/2"]
[ECO "E90"]
[WhiteElo "2190"]
[BlackElo "2277"]
[Annotator "ChessBase"]
[PlyCount "129"]
[EventDate "2018.??.??"]
[EventCountry "BEL"]
[SourceTitle "playchess.com"]
[Source "ChessBase"]
[SourceQuality "1"]
[TimeControl "40/5400+30:900+30"]

1. d4 {[%emt 0:00:00]} Nf6 {[%emt 0:02:59]} 2. c4 {[%emt 0:00:00]} g6 {[%emt 0:00:48]} 3. Nc3 {[%emt 0:00:00]} Bg7 {[%emt 0:00:25]} 4. e4 {[%emt 0:00:00]} d6 {[%emt 0:00:04]} 5. Nf3 {[%emt 0:00:15]} O-O {[%emt 0:00:09]} 6. Be3 {[%emt 0:00:31]} e5 {[%emt 0:13:09]} 7. dxe5 {[%emt 0:01:09]} dxe5 {[%emt 0:00:07]} 8. Qxd8 {[%emt 0:00:05]} Rxd8 {[%emt 0:00:04]} 9. Nd5 {[%emt 0:00:06]} Nxd5 {[%emt 0:00:39]} 10. cxd5 {[%emt 0:00:06]} c6 {[%emt 0:00:03]} 11. Bc4 {[%emt 0:00:09]} cxd5 {[%emt 0:02:19]} 12. Bxd5 {[%emt 0:00:15]} Nc6 {[%emt 0:00:05]} 13. Bxc6 {[%emt 0:01:34]} bxc6 {[%emt 0:00:04]} 14. O-O {[%emt 0:00:11]} f5 {[%emt 0:04:17]} 15. Rfc1 {[%emt 0:05:27]} Rb8 {[%emt 0:07:08]} 16. b3 {[%emt 0:02:22]} Rb4 {[%emt 0:00:25]} 17. Rd1 {[%emt 0:06:10]} Re8 {[%emt 0:00:29]} 18. Nd2 {[%emt 0:02:00]} fxe4 {[%emt 0:04:11]} 19. Nc4 {[%emt 0:02:38]} Be6 {[%emt 0:05:49]} 20. Bc5 {[%emt 0:04:27]} Rbb8 {[%emt 0:02:51]} 21. Nd6 {[%emt 0:07:01]} Red8 {[%emt 0:02:42]} 22. Nxe4 {[%emt 0:05:02]} a6 {[%emt 0:04:52]} 23. Be7 {[%emt 0:11:31]} Rxd1+ {[%emt 0:05:38]} 24. Rxd1 {[%emt 0:00:16]} Bd5 {[%emt 0:00:08]} 25. f3 {[%emt 0:02:30]} Kf7 {[%emt 0:00:34]} 26. Bc5 {[%emt 0:00:52]} h6 {[%emt 0:09:21]} 27. Kf2 {[%emt 0:01:04]} Ke6 {[%emt 0:00:22]} 28. Be3 {[%emt 0:05:32]} Bf8 {[%emt 0:02:15]} 29. Nc5+ {[%emt 0:02:14]} Bxc5 {[%emt 0:01:18]} 30. Bxc5 {[%emt 0:00:07]} a5 {[%emt 0:02:13]} 31. Re1 {[%emt 0:03:00]} a4 {[%emt 0:03:54]} 32. Bd4 {[%emt 0:01:04]} axb3 {[%emt 0:00:26]} 33. Bxe5 {[%emt 0:00:19]} Rb7 {[%emt 0:02:38]} 34. axb3 {[%emt 0:00:20]} Kf7 {[%emt 0:00:27]} 35. Rc1 {[%emt 0:06:00]} Rxb3 {[%emt 0:00:14]} 36. Bd4 {[%emt 0:00:14]} Rd3 {[%emt 0:00:24]} 37. Be3 {[%emt 0:00:35]} g5 {[%emt 0:00:06]} 38. h4 {[%emt 0:02:44]} Kg6 {[%emt 0:01:15]} 39. hxg5 {[%emt 0:01:37]} hxg5 {[%emt 0:00:07]} 40. Rc2 {[%emt 0:00:15]} Kf5 {[%emt 0:15:15]} 41. Rc1 {[%emt 0:18:23]} g4 {[%emt 0:02:49]} 42. fxg4+ {[%emt 0:00:25]} Kxg4 {[%emt 0:00:17]} 43. g3 {[%emt 0:00:45]} Ra3 {[%emt 0:00:17]} 44. Bf4 {[%emt 0:00:31]} Kf5 {[%emt 0:00:29]} 45. Bd6 {[%emt 0:01:32]} Rf3+ {[%emt 0:01:52]} 46. Ke2 {[%emt 0:00:27]} Ke4 {[%emt 0:00:10]} 47. Bf4 {[%emt 0:02:33]} Ra3 {[%emt 0:01:06]} 48. Kd2 {[%emt 0:04:29]} Kd4 {[%emt 0:00:28]} 49. Bd6 {[%emt 0:00:48]} Rd3+ {[%emt 0:00:53]} 50. Kc2 {[%emt 0:01:24]} Bc4 {[%emt 0:01:19]} 51. Rh1 {[%emt 0:02:15]} Bb3+ {[%emt 0:00:36]} 52. Kb2 {[%emt 0:02:58]} c5 {[%emt 0:00:41]} 53. Re1 {[%emt 0:06:21]} c4 {[%emt 0:00:57]} 54. Be5+ {[%emt 0:01:42]} Kc5 {[%emt 0:00:13]} 55. Bc3 {[%emt 0:00:52]} Rxg3 {[%emt 0:00:23]} 56. Re5+ {[%emt 0:00:24]} Kd6 {[%emt 0:00:21]} 57. Ra5 {[%emt 0:00:23]} Rg2+ {[%emt 0:00:14]} 58. Ka3 {[%emt 0:00:08]} Kc6 {[%emt 0:01:20]} 59. Kb4 {[%emt 0:00:56]} Rg8 {[%emt 0:00:09]} 60. Rc5+ {[%emt 0:00:18]} Kd6 {[%emt 0:00:19]} 61. Be5+ {[%emt 0:00:19]} Ke6 {[%emt 0:00:06]} 62. Bc3 {[%emt 0:00:21]} Rg1 {[%emt 0:00:36]} 63. Re5+ {[%emt 0:01:50]} Kd6 {[%emt 0:00:10]} 64. Ra5 {[%emt 0:00:26]} Rb1 {[%emt 0:00:12]} 65. Ra1 {[%emt 0:00:19]} 1/2-1/2

[Event "WWRR Elo 2018"]
[Site "Wachtebeke"]
[Date "2018.02.12"]
[Round "5"]
[White "Hummel, Joop"]
[Black "Van Malder, Dries"]
[Result "1/2-1/2"]
[ECO "E14"]
[WhiteElo "1975"]
[BlackElo "2032"]
[Annotator "NA RC"]
[PlyCount "62"]
[EventDate "2018.??.??"]
[EventCountry "BEL"]
[SourceTitle "playchess.com"]
[Source "ChessBase"]
[SourceQuality "1"]
[TimeControl "40/5400+30:900+30"]

{[%evp 11,63,22,14,11,2,14,54,34,35,0,0,0,0,0,60,53,62,51,46,56,56,45,102,0,0,-8,-6,-44,-32,-69,-67,-79,-66,-63,-63,-59,-69,-64,-66,-125,-8,-14,-13,-25,-32,-62,0,-9,0,0,32767,0,0,0]} 1. Nf3 {[%emt 0:00:12]} Nf6 {[%emt 0:00:13]} 2. d4 {[%emt 0:00:36]} e6 {[%emt 0:00:24]} 3. e3 {[%emt 0:01:42]} c5 {[%emt 0:00:51]} 4. Bd3 {[%emt 0:01:28]} b6 {[%emt 0:01:06]} 5. O-O {[%emt 0:00:14]} Bb7 {[%emt 0:00:04]} 6. c4 {[%emt 0:02:27]} cxd4 {[%emt 0:00:45]} 7. exd4 {[%emt 0:00:03] E14: Queen's Indian: Classical Variation (4 e3)} d5 {[%emt 0:00:52]} 8. Nc3 {[%emt 0:02:43]} Nbd7 {[%emt 0:00:51]} 9. cxd5 {[%emt 0:04:43]} Nxd5 {[%emt 0:00:31]} 10. Bb5 $146 {[%emt 0:13:17]} ({Predecessor:} 10. Nxd5 Bxd5 11. Ne5 Nxe5 12. dxe5 Bc6 13. Re1 Bc5 14. Be3 Qd5 {0-1 (30) Panelo Munoz,M (2388)-Cori Tello,J (2648) Vallfogona de Balague 2017}) 10... a6 {[%emt 0:04:33]} 11. Bxd7+ {[%emt 0:01:33]} Qxd7 {[%emt 0:00:19]} 12. Ne5 {[%emt 0:00:02]} Nxc3 {[%emt 0:02:00]} ({Black should play} 12... Qc7 $11) 13. Nxd7 {[%emt 0:05:28]} ({Of course not} 13. bxc3 Qc7 $11) 13... Nxd1 {[%emt 0:00:25]} 14. Nxb6 {[%emt 0:00:02]} Rd8 {[%emt 0:02:43]} 15. Rxd1 {[%emt 0:00:29]} Bc5 {[%emt 0:00:35]} 16. Nc4 {[%emt 0:01:56]} Bxd4 {[%emt 0:04:24] [#]} 17. Be3 {[%emt 0:00:16]} (17. Bf4 $1 $16) 17... Bxe3 {[%emt 0:01:13]} 18. Rxd8+ {[%emt 0:00:20]} Kxd8 {[%emt 0:00:09]} 19. fxe3 {[%emt 0:06:19]} Ke7 {[%emt 0:03:19]} 20. Rd1 {[%emt 0:05:00]} Bd5 {[%emt 0:09:27]} 21. Nb6 $1 {[%emt 0:07:34]} Bxa2 {[%emt 0:01:11]} 22. Rd7+ {[%emt 0:00:08]} Kf6 {[%emt 0:00:10]} 23. Ra7 {[%emt 0:00:10]} Rd8 {[%emt 0:01:29]} 24. Nd7+ {[%emt 0:02:51]} Kf5 {[%emt 0:09:36]} 25. Kf2 {[%emt 0:01:26]} (25. h3 $15) 25... Bc4 {[%emt 0:07:26] [#]} (25... Rc8 $17 26. Kg3 Rc2) 26. g4+ $1 {[%emt 0:00:30]} Ke4 {[%emt 0:10:36]} 27. Nc5+ {[%emt 0:03:13]} Kd5 {[%emt 0:01:23]} 28. Na4 {[%emt 0:01:17]} Bb3 {[%emt 0:05:01]} (28... Kc6 $17 29. Rxf7 Rb8 30. Rxg7 Rb4) 29. Rxa6 {[%emt 0:13:43]} Bxa4 {[%emt 0:01:40]} 30. Rxa4 {[%emt 0:00:02]} Ke5 {[%emt 0:04:43]} 31. Ke2 {[%emt 0:03:08]} Rb8 {[%emt 0:28:01]} 1/2-1/2